fUSD/lending_fUSD_20250404
["ID","MTS","AMOUNT","RATE_DAILY","PERIOD"]
[357147302,1743792656039,-10020.50254633,0.000499,5]
[357147303,1743792656048,-151.0,0.000499,120]
[357147304,1743792656058,-227.317871,0.000499,120]
[357147305,1743792656067,-227.317879,0.000499,120]
[357147306,1743792656077,-181.80672694,0.000499,10]
[357147307,1743792656086,-771.85,0.00049995,120]
[357147308,1743792656095,-500.0,0.00049995,120]
[357147309,1743792656104,-482.25288474,0.00049995,120]
[357147310,1743792656114,-500.0,0.00049995,120]
[357147311,1743792656124,-604.09984068,0.00049995,120]
[357147312,1743792656134,-500.0,0.00049995,120]
[357147313,1743792656144,-495.44827364,0.00049995,120]
[357147314,1743792656153,-752.65,0.00049995,120]
[357147315,1743792656163,-500.0,0.00049995,120]
[357147316,1743792656173,-500.0,0.00049995,120]
[357147317,1743792656182,-500.0,0.00049995,120]
[357147318,1743792656191,-1792.4,0.00049995,10]
[357147319,1743792656200,-500.0,0.00049995,120]
[357147320,1743792656210,-500.0,0.00049995,7]
[357147321,1743792656219,-500.0,0.00049995,30]
[357147322,1743792656229,-500.0,0.00049995,120]
[357147323,1743792656238,-2000.0,0.00049995,2]
[357147324,1743792656247,-347.72600281,0.00049995,120]
[357147325,1743792656256,-893.45,0.00049995,120]
[357147326,1743792656265,-1008.22,0.00049995,120]
[357147327,1743792656274,-500.0,0.00049995,120]
[357147328,1743792656284,-500.0,0.00049995,120]
[357147329,1743792656293,-500.0,0.00049995,120]
[357147330,1743792656302,-500.0,0.00049995,120]
[357147331,1743792656311,-997.14,0.00049995,120]
[357147332,1743792656321,-538.49,0.00049995,120]
[357147333,1743792656330,-572.03,0.00049995,120]
[357147334,1743792656339,-2999.97,0.00049995,2]
[357147335,1743792656348,-500.0,0.00049995,2]
[357147336,1743792656358,-907.09,0.00049995,120]
[357147337,1743792656367,-500.0,0.00049995,120]
[357147338,1743792656376,-500.0,0.00049995,7]
[357147339,1743792656385,-500.0,0.00049995,120]
[357147340,1743792656394,-857.64,0.00049995,120]
[357147341,1743792656403,-533.97168446,0.00049995,120]
[357147342,1743792656412,-500.0,0.00049995,120]
[357147343,1743792656421,-500.0,0.00049995,120]
[357147344,1743792656430,-500.0,0.00049995,120]
[357147345,1743792656439,-503.81,0.00049995,120]
[357147346,1743792656448,-500.0,0.00049995,120]
[357147347,1743792656457,-500.0,0.00049995,120]
[357147348,1743792656467,-492.34788813,0.00049995,120]
[357147349,1743792656476,-500.0,0.00049995,120]
[357147350,1743792656485,-413.75407291,0.00049995,120]
[357147351,1743792656494,-500.0,0.00049995,120]
[357147352,1743792656504,-725.03,0.00049995,120]
[357147353,1743792656513,-545.528,0.00049999,88]
[357147354,1743792656522,-500.0,0.00049999,120]
[357147355,1743792656532,-500.0,0.00049999,120]
[357147356,1743792656541,-500.0,0.00049999,120]
[357147357,1743792656550,-500.0,0.00049999,120]
[357147358,1743792656559,-500.0,0.00049999,120]
[357147359,1743792656567,-359.43493567,0.00049999,120]
[357147360,1743792656577,-619.97,0.00049999,120]
[357147361,1743792656586,-619.97,0.00049999,120]
[357147362,1743792656596,-619.97,0.00049999,120]
[357147363,1743792656605,-619.97,0.00049999,120]
[357147364,1743792656614,-619.97,0.00049999,120]
[357147365,1743792656623,-619.97,0.00049999,120]
[357147366,1743792656633,-1608.36798725,0.0005,120]
[357147367,1743792656642,-556692.49311294,0.0005,120]
[357147368,1743792656654,-1057.50924714,0.0005,120]
[357147369,1743792656813,-196.0,0.00049,7]
[357147370,1743792656822,-166126.9909762,0.0005,120]
[357147371,1743792656844,-121.05234839,0.0005,120]
[357147372,1743792656855,-389.0640008,0.0005,120]
[357147373,1743792657353,-941.23333067,0.0005,120]
[357147374,1743792657491,-745.374582,0.0004869,14]
[357147375,1743792657501,-745.374582,0.00048767,14]
[357147376,1743792657510,-509.250836,0.0004885,14]
[357147377,1743792657522,-236.123746,0.0004885,14]
[357147378,1743792657531,-745.374582,0.00049,14]
[357147379,1743792657540,-745.374582,0.00049161,14]
[357147380,1743792657550,-274671.65698386,0.0005,120]
[357147381,1743792657559,-54244.0,0.0005,120]
[357147382,1743792657568,-622.01979932,0.0005,2]
[357147383,1743792657577,-1731.69358991,0.0005,120]
[357147384,1743792657586,-2634.3274726,0.0005,5]
[357147385,1743792657595,-2911.12796644,0.0005,3]
[357147386,1743792657604,-154.15079231,0.0005,120]
[357147387,1743792657613,-1135.62901582,0.0005,2]
[357147388,1743792657623,-1515.58787025,0.0005,2]
[357147389,1743792657632,-347.79614234,0.0005,120]
[357147390,1743792657642,-185141.65,0.0005,60]
[357147391,1743792657652,-2100.0,0.0005,15]
[357147392,1743792657661,-151.0,0.0005,120]
[357147393,1743792657671,-151.0,0.0005,120]
[357147394,1743792657681,-719.91233087,0.0005,120]
[357147395,1743792657691,-152.864488,0.0005,120]
[357147396,1743792657700,-1742.8441241,0.0005,15]
[357147397,1743792657710,-608.40457459,0.0005,15]
[357147398,1743792657719,-151.0,0.0005,120]
[357147399,1743792657728,-322.17,0.00050036,2]
[357147400,1743792657738,-350.0,0.00050068,12]
[357147401,1743792657748,-21124.0,0.0005007,120]
[357147402,1743792657757,-21124.0,0.0005008,120]
[357147403,1743792657766,-800.39,0.00050082,30]
[357147404,1743792657776,-253.2,0.00050082,30]
[357147405,1743792657787,-21124.0,0.0005009,120]
[357147406,1743792657797,-500.0,0.00050095,16]
[357147407,1743792657806,-1040.72074604,0.00050099,120]
[357147408,1743792657815,-619.97,0.00050099,120]
[357147409,1743792657825,-619.97,0.00050099,120]
[357147410,1743792657835,-619.97,0.00050099,120]
[357147411,1743792657845,-619.97,0.00050099,120]
[357147412,1743792657855,-620.04109705,0.00050099,120]
[357147413,1743792657962,-104792.83869373,0.000501,120]
[357147414,1743792657975,-4112.62281185,0.000501,120]
[357147415,1743792657987,-467.051532,0.000501,120]
[357147416,1743792658003,-745.374582,0.00049315,14]
[357147417,1743792658013,-5226.59502881,0.000501,120]
[357147418,1743792658024,-3681.51343144,0.000501,120]
[357147419,1743792658083,-42050.246655,0.000501,120]
[357147420,1743792658096,-367430.40609156,0.000501,120]
[357147421,1743792750841,-202.59119274,0.00048767,120]
[357147422,1743793110970,-152.49,0.000392,2]
[357147423,1743793540121,-233.28,0.00026849,2]
[357147424,1743793540145,-233.28,0.00032646,2]
[357147425,1743793540167,-718.89,0.00034559,84]
[357147426,1743793540189,-250.0,0.00037,2]
[357147427,1743793540211,-233.28,0.00038443,2]
[357147428,1743793540235,-11.50504555,0.00039,2]
[357147429,1743793635126,-972.108,0.00027397,2]
[357147430,1743793635149,-288.49495445,0.00039,2]
[357147431,1743793635172,-618.25961465,0.000391,2]
[357147432,1743793635193,-1680.74989144,0.000392,2]
[357147433,1743793637080,-166.76010856,0.000392,2]
[357147434,1743793637102,-500.0,0.000392,2]
[357147435,1743793637123,-500.0,0.000392,2]
[357147436,1743793637145,-500.0,0.000392,2]
[357147437,1743793637166,-251.36712798,0.000392,2]
[357147438,1743793637188,-250.0,0.0003955,2]
[357147439,1743793637208,-150.0,0.0004,2]
[357147440,1743793637229,-350.0,0.00041,2]
[357147441,1743793637250,-1000.0,0.000411,2]
[357147442,1743793637271,-325.32419687,0.000416,2]
[357147443,1743793637292,-1309.0,0.000416,2]
[357147444,1743793637314,-681.59,0.00041847,30]
[357147445,1743793637339,-837.37,0.00041847,2]
[357147446,1743793637360,-1021.0,0.000419,2]
[357147447,1743793637383,-410.6564154,0.00042224,2]
[357147448,1743793637404,-4862.54439909,0.000424,3]
[357147449,1743793639119,-163.91242618,0.000424,3]
[357147450,1743793642138,-158.80857693,0.000422,3]
[357147451,1743793644090,-370.19142307,0.000422,3]
[357147452,1743793644112,-400.0,0.00043,2]
[357147453,1743793644132,-5555.0,0.00043,5]
[357147454,1743793644154,-500.0,0.00043119,31]
[357147455,1743793644175,-276.13292979,0.00043119,31]
[357147456,1743793644195,-250.0,0.0004312,2]
[357147457,1743793644215,-350.0,0.0004312,12]
[357147458,1743793644234,-250.0,0.0004312,2]
[357147459,1743793644253,-350.0,0.0004312,12]
[357147460,1743793644274,-1962.99,0.0004312,30]
[357147461,1743793644301,-154.83,0.000436,36]
[357147462,1743793644321,-151.0,0.00043732,2]
[357147463,1743793644346,-1000.0,0.000438,2]
[357147464,1743793644366,-233.28,0.00044239,2]
[357147465,1743793644388,-890.39,0.00044422,2]
[357147466,1743793644409,-1021.62961181,0.000447,2]
[357147467,1743793644430,-450.0,0.00045,2]
[357147468,1743793644449,-166.45,0.0004512,2]
[357147469,1743793644468,-4307.63,0.00045537,2]
[357147470,1743793644489,-184.19,0.00045823,2]
[357147471,1743793644511,-150.07,0.00045874,2]
[357147472,1743793644533,-535.90063777,0.00046132,2]
[357147473,1743793644556,-150.4,0.0004615,2]
[357147474,1743793644582,-154.83,0.000464,39]
[357147475,1743793644749,-154.83,0.000464,39]
[357147476,1743793644770,-250.0,0.00046493,2]
[357147477,1743793644790,-200.0,0.00046568,2]
[357147478,1743793644813,-176.57851011,0.00046568,77]
[357147479,1743793644834,-526.304,0.00046568,77]
[357147480,1743793644854,-890.39,0.00046686,2]
[357147481,1743793644874,-188.08,0.00046944,2]
[357147482,1743793644895,-202.59119274,0.00046967,8]
[357147483,1743793644916,-1470.79727445,0.00046968,2]
[357147484,1743793645090,-209.71598708,0.00046968,2]
[357147485,1743793775204,151.0,0.00043623,2]
[357147486,1743793831654,-2152.288244,0.00045775,2]
[357147487,1743793831664,-277.545,0.00046005,2]
[357147488,1743793831673,-249.81174537,0.00046733,6]
[357147489,1743793831682,-788.3194591,0.00046844,120]
[357147490,1743793831691,-550.0,0.00046977,5]
[357147491,1743793831700,-200.0,0.00046977,60]
[357147492,1743793831709,-1841.94041109,0.00046978,2]
[357147493,1743793831748,-4417.06336276,0.00046978,2]
[357147495,1743793831759,-847.62897045,0.00046978,2]
[357147498,1743793831770,-863.32,0.00046978,2]
[357147517,1743793837377,-610.82773166,0.00046978,2]
[357147518,1743793837490,-15319.21952404,0.00046978,2]
[357147519,1743793837500,-500.0,0.00047,2]
[357147520,1743793837509,-200.0,0.00047024,2]
[357147521,1743793837518,-1638.91088404,0.00047272,2]
[357147522,1743793837527,-10026.0,0.00047438,2]
[357147523,1743793837536,-156.44,0.00047489,120]
[357147524,1743793837545,-150.0,0.00047713,7]
[357147525,1743793837554,-788.31945908,0.00047783,120]
[357147526,1743793837563,-474.47,0.00047797,2]
[357147527,1743793837572,-1000.0,0.00047855,2]
[357147528,1743793837581,-210.57,0.00047901,2]
[357147529,1743793837591,-426.88,0.00048314,2]
[357147530,1743793837600,-1575.45123548,0.00048434,2]
[357147531,1743793837610,-25097.68966135,0.00048524,2]
[357147532,1743793837619,-1527.9582884,0.00048534,4]
[357147533,1743793837629,-1075.52676552,0.00048535,2]
[357147534,1743793837638,-3245.6383321,0.00048667,15]
[357147535,1743793837648,-1575.45123547,0.00048688,2]
[357147536,1743793837657,-788.31945908,0.00048722,120]
[357147538,1743793837667,-150.0,0.00048766,120]
[357147539,1743793837676,-500.0,0.00048767,120]
[357147541,1743793837685,-500.0,0.00048767,120]
[357147543,1743793837695,-718.11,0.00048767,120]
[357147545,1743793837704,-500.0,0.00048767,7]
[357147547,1743793837713,-500.0,0.00048767,120]
[357147549,1743793837723,-500.0,0.00048767,120]
[357147551,1743793837734,-678.96,0.00048767,120]
[357147553,1743793837743,-500.0,0.00048767,120]
[357147555,1743793837752,-500.0,0.00048767,120]
[357147557,1743793837761,-500.0,0.00048767,120]
[357147559,1743793837771,-500.0,0.00048767,120]
[357147561,1743793837780,-500.0,0.00048767,120]
[357147562,1743793837789,-500.0,0.00048767,120]
[357147564,1743793837798,-500.0,0.00048767,120]
[357147566,1743793837807,-500.0,0.00048767,120]
[357147568,1743793837817,-500.0,0.00048767,2]
[357147570,1743793837827,-297.40880726,0.00048767,120]
[357147572,1743793837837,-500.0,0.00048767,120]
[357147574,1743793837846,-717.44,0.00048767,120]
[357147576,1743793837855,-500.0,0.00048767,120]
[357147578,1743793837863,-500.0,0.00048767,120]
[357147580,1743793837873,-500.0,0.00048767,120]
[357147582,1743793837881,-573.98,0.00048767,120]
[357147584,1743793837890,-500.0,0.00048767,120]
[357147586,1743793837900,-500.0,0.00048767,120]
[357147588,1743793837909,-500.0,0.00048767,30]
[357147590,1743793837920,-500.0,0.00048767,120]
[357147592,1743793837930,-500.0,0.00048767,120]
[357147594,1743793837939,-500.0,0.00048767,120]
[357147596,1743793837948,-500.0,0.00048767,120]
[357147598,1743793837957,-500.0,0.00048767,120]
[357147600,1743793837967,-630.33,0.00048767,120]
[357147601,1743793837976,-500.0,0.00048767,120]
[357147603,1743793837986,-500.0,0.00048767,10]
[357147605,1743793837995,-629.79,0.00048767,120]
[357147607,1743793838005,-378.73469739,0.00048767,120]
[357147609,1743793838014,-1463.71,0.00048767,120]
[357147611,1743793838023,-500.0,0.00048767,120]
[357147613,1743793838032,-500.0,0.00048767,120]
[357147615,1743793838042,-654.97,0.00048767,120]
[357147617,1743793838051,-500.0,0.00048767,120]
[357147619,1743793838060,-500.0,0.00048767,120]
[357147621,1743793838070,-500.0,0.00048767,12]
[357147623,1743793838079,-514.49072321,0.00048767,120]
[357147625,1743793838088,-500.0,0.00048767,120]
[357147627,1743793838098,-503.63064348,0.00048767,120]
[357147629,1743793838108,-456.06000763,0.00048767,120]
[357147631,1743793838116,-500.0,0.00048767,120]
[357147632,1743793838125,-500.0,0.00048767,120]
[357147634,1743793838134,-500.0,0.00048767,30]
[357147636,1743793838144,-611.05,0.00048767,120]
[357147638,1743793838153,-180.20171913,0.00048767,120]
[357147640,1743793838162,-500.0,0.00048767,120]
[357147642,1743793838171,-500.0,0.00048767,120]
[357147644,1743793838180,-541.93,0.00048767,120]
[357147646,1743793838189,-500.0,0.00048767,120]
[357147648,1743793838199,-500.0,0.00048767,120]
[357147650,1743793838208,-500.0,0.00048767,120]
[357147652,1743793838217,-500.0,0.00048767,120]
[357147654,1743793838226,-500.0,0.00048767,120]
[357147656,1743793838237,-500.0,0.00048767,120]
[357147658,1743793838247,-415.96166544,0.00048767,120]
[357147660,1743793838256,-500.0,0.00048767,120]
[357147662,1743793838265,-595.85,0.00048767,120]
[357147664,1743793838274,-500.0,0.00048767,10]
[357147665,1743793838283,-500.0,0.00048767,120]
[357147667,1743793838292,-543.01,0.00048767,120]
[357147670,1743793838302,-500.0,0.00048767,120]
[357147672,1743793838312,-500.0,0.00048767,120]
[357147674,1743793838321,-500.0,0.00048767,120]
[357147676,1743793838331,-500.0,0.00048767,120]
[357147677,1743793838341,-500.0,0.00048767,120]
[357147679,1743793838351,-500.0,0.00048767,120]
[357147681,1743793838360,-500.0,0.00048767,120]
[357147683,1743793838369,-500.0,0.00048767,120]
[357147685,1743793838379,-518.14,0.00048767,120]
[357147687,1743793838388,-500.0,0.00048767,120]
[357147689,1743793838398,-500.0,0.00048767,120]
[357147705,1743793838411,-1868.11,0.00048767,7]
[357147708,1743793838555,-739.93,0.00048767,120]
[357147710,1743793838564,-885.4,0.00048767,120]
[357147712,1743793838574,-1418.98,0.00048767,10]
[357147714,1743793838585,-175.0,0.00048767,2]
[357147715,1743793838594,-500.0,0.00048767,120]
[357147717,1743793838603,-500.0,0.00048767,120]
[357147719,1743793838613,-965.76,0.00048767,120]
[357147721,1743793838622,-500.0,0.00048767,120]
[357147723,1743793838632,-282.49297942,0.00048767,7]
[357147725,1743793838641,-500.0,0.00048767,120]
[357147727,1743793838650,-1043.84,0.00048767,120]
[357147729,1743793838660,-707.31,0.00048767,120]
[357147731,1743793838669,-3809.92,0.00048767,120]
[357147733,1743793838679,-500.0,0.00048767,30]
[357147735,1743793838688,-798.17,0.00048767,120]
[357147737,1743793838698,-500.0,0.00048767,120]
[357147739,1743793838708,-500.0,0.00048767,120]
[357147741,1743793838717,-500.0,0.00048767,120]
[357147743,1743793838726,-500.0,0.00048767,120]
[357147744,1743793838736,-2000.0,0.00048767,2]
[357147745,1743793838745,-789.41,0.00048767,120]
[357147746,1743793838754,-500.0,0.00048767,120]
[357147747,1743793838763,-2374.98,0.00048767,2]
[357147748,1743793838773,-500.0,0.00048767,2]
[357147749,1743793838782,-2004.58,0.00048767,120]
[357147750,1743793838791,-475.47215707,0.00048767,16]
[357147751,1743793838803,-500.0,0.00048767,120]
[357147752,1743793838813,-3245.6383321,0.00048837,15]
[357147753,1743793838822,-1575.45123547,0.00048941,2]
[357147754,1743793838831,-1367.797,0.00048941,2]
[357147755,1743793838840,-475.9709,0.00048941,2]
[357147756,1743793838850,-890.39,0.0004895,2]
[357147757,1743793838859,-539.0,0.00049,30]
[357147758,1743793838867,-550.0,0.00049,2]
[357147759,1743793838877,-202.195502,0.00049,120]
[357147760,1743793838887,-3245.6383321,0.00049008,15]
[357147761,1743793838897,-500.0,0.00049041,120]
[357147762,1743793838907,-500.0,0.00049041,120]
[357147763,1743793838916,-718.11,0.00049041,120]
[357147764,1743793838928,-500.0,0.00049041,7]
[357147765,1743793838937,-500.0,0.00049041,120]
[357147766,1743793838946,-500.0,0.00049041,120]
[357147767,1743793838955,-678.96,0.00049041,120]
[357147768,1743793838964,-500.0,0.00049041,120]
[357147769,1743793838974,-500.0,0.00049041,120]
[357147770,1743793838985,-424.27659785,0.00049041,120]
[357147771,1743793838995,-500.0,0.00049041,120]
[357147772,1743793839005,-500.0,0.00049041,120]
[357147773,1743793839014,-500.0,0.00049041,120]
[357147774,1743793839024,-500.0,0.00049041,120]
[357147775,1743793839033,-500.0,0.00049041,120]
[357147776,1743793839042,-500.0,0.00049041,2]
[357147777,1743793839052,-717.44,0.00049041,120]
[357147778,1743793839061,-500.0,0.00049041,120]
[357147779,1743793839070,-500.0,0.00049041,120]
[357147780,1743793839079,-500.0,0.00049041,120]
[357147781,1743793839089,-573.98,0.00049041,120]
[357147782,1743793839099,-500.0,0.00049041,120]
[357147783,1743793839108,-500.0,0.00049041,120]
[357147784,1743793839117,-500.0,0.00049041,30]
[357147785,1743793839127,-500.0,0.00049041,120]
[357147786,1743793839136,-443.31980339,0.00049041,120]
[357147787,1743793839145,-500.0,0.00049041,120]
[357147788,1743793839154,-500.0,0.00049041,120]
[357147789,1743793839163,-500.0,0.00049041,120]
[357147790,1743793839173,-630.33,0.00049041,120]
[357147791,1743793839183,-399.52699011,0.00049041,120]
[357147792,1743793839192,-516.29535497,0.00049041,10]
[357147793,1743793839202,-629.79,0.00049041,120]
[357147794,1743793839212,-1463.71,0.00049041,120]
[357147795,1743793839221,-500.0,0.00049041,120]
[357147796,1743793839231,-500.0,0.00049041,120]
[357147797,1743793839242,-654.97,0.00049041,120]
[357147798,1743793839251,-500.0,0.00049041,120]
[357147799,1743793839260,-500.0,0.00049041,120]
[357147800,1743793839269,-500.0,0.00049041,12]
[357147801,1743793839278,-500.0,0.00049041,120]
[357147802,1743793839287,-500.0,0.00049041,120]
[357147803,1743793839297,-500.0,0.00049041,120]
[357147804,1743793839306,-525.77649167,0.00049041,30]
[357147805,1743793839316,-611.05,0.00049041,120]
[357147807,1743793839325,-500.0,0.00049041,120]
[357147808,1743793839334,-500.0,0.00049041,120]
[357147809,1743793839343,-541.93,0.00049041,120]
[357147810,1743793839353,-500.0,0.00049041,120]
[357147811,1743793839362,-506.01807718,0.00049041,120]
[357147812,1743793839373,-500.0,0.00049041,120]
[357147813,1743793839382,-500.0,0.00049041,120]
[357147814,1743793839393,-500.0,0.00049041,120]
[357147815,1743793839403,-493.94385711,0.00049041,120]
[357147816,1743793839413,-500.0,0.00049041,120]
[357147817,1743793839422,-595.85,0.00049041,120]
[357147819,1743793839431,-500.0,0.00049041,10]
[357147820,1743793839441,-525.8659374,0.00049041,120]
[357147821,1743793839451,-543.01,0.00049041,120]
[357147822,1743793839459,-500.0,0.00049041,120]
[357147823,1743793839469,-500.0,0.00049041,120]
[357147824,1743793839481,-500.0,0.00049041,120]
[357147825,1743793839491,-500.0,0.00049041,120]
[357147827,1743793839501,-500.0,0.00049041,120]
[357147828,1743793839510,-255.99230596,0.00049041,120]
[357147829,1743793839646,-244.00769404,0.00049041,120]
[357147830,1743793839655,-500.0,0.00049041,120]
[357147831,1743793839664,-500.0,0.00049041,120]
[357147832,1743793839673,-518.14,0.00049041,120]
[357147833,1743793839682,-500.0,0.00049041,120]
[357147834,1743793839691,-160.90980136,0.00049041,120]
[357147835,1743793839703,-339.09019864,0.00049041,120]
[357147836,1743793839712,-1868.11,0.00049041,7]
[357147837,1743793839722,-739.93,0.00049041,120]
[357147838,1743793839731,-885.4,0.00049041,120]
[357147839,1743793839741,-1418.98,0.00049041,10]
[357147840,1743793839751,-500.0,0.00049041,120]
[357147841,1743793839760,-500.0,0.00049041,120]
[357147842,1743793839770,-965.76,0.00049041,120]
[357147843,1743793839779,-500.0,0.00049041,120]
[357147844,1743793839788,-500.0,0.00049041,120]
[357147845,1743793839797,-1043.84,0.00049041,120]
[357147846,1743793839807,-707.31,0.00049041,120]
[357147847,1743793839817,-2031.57980271,0.00049041,120]
[357147848,1743793839828,-1253.8347995,0.00049041,120]
[357147849,1743793839908,-524.50539779,0.00049041,120]
[357147850,1743793839918,-500.0,0.00049041,30]
[357147851,1743793839928,-207.50520733,0.00049041,120]
[357147852,1743793839942,-590.66479267,0.00049041,120]
[357147853,1743793839952,-500.0,0.00049041,120]
[357147854,1743793839962,-500.0,0.00049041,120]
[357147855,1743793839972,-422.59834766,0.00049041,120]
[357147856,1743793839981,-181.28548702,0.00049041,120]
[357147857,1743793839997,-318.71451298,0.00049041,120]
[357147858,1743793840006,-2000.0,0.00049041,2]
[357147859,1743793840015,-789.41,0.00049041,120]
[357147860,1743793840025,-500.0,0.00049041,120]
[357147862,1743793840034,-2374.98,0.00049041,2]
[357147864,1743793840043,-500.0,0.00049041,2]
[357147866,1743793840052,-2004.58,0.00049041,120]
[357147868,1743793840061,-500.0,0.00049041,120]
[357147869,1743793840071,-500.0,0.00049074,10]
[357147871,1743793840081,-1147.14784869,0.00049098,30]
[357147873,1743793840090,-1082.84294535,0.00049098,30]
[357147874,1743793840101,-1113.9161192,0.00049098,30]
[357147875,1743793840110,-500.0,0.00049114,120]
[357147876,1743793840120,-1484.61,0.00049114,120]
[357147877,1743793840130,-1563.01,0.00049114,120]
[357147878,1743793840139,-500.0,0.00049114,120]
[357147879,1743793840149,-660.86,0.00049114,120]
[357147880,1743793840158,-500.0,0.00049114,120]
[357147881,1743793840168,-719.56,0.00049114,120]
[357147882,1743793840177,-500.0,0.00049114,120]
[357147883,1743793840187,-237.32512792,0.00049114,120]
[357147884,1743793840197,-628.24,0.00049114,120]
[357147885,1743793840206,-500.0,0.00049114,2]
[357147886,1743793840216,-628.34617746,0.00049114,120]
[357147887,1743793840225,-500.0,0.00049114,120]
[357147888,1743793840237,-500.0,0.00049114,100]
[357147889,1743793840246,-500.0,0.00049114,120]
[357147890,1743793840256,-590.74,0.00049114,120]
[357147891,1743793840266,-500.0,0.00049114,2]
[357147892,1743793840277,-155.25216316,0.00049115,15]
[357147893,1743793840287,-891.2849,0.00049115,2]
[357147894,1743793840297,-12192.8756,0.00049115,2]
[357147895,1743793840306,-3571.42,0.00049115,2]
[357147896,1743793840316,-172.75,0.00049129,2]
[357147897,1743793840326,-150.0,0.00049174,120]
[357147898,1743793840336,-3245.6383321,0.00049178,15]
[357147899,1743793840346,-154.83,0.000492,45]
[357147900,1743793840355,-154.83,0.000492,45]
[357147901,1743793840365,-11436.3756637,0.00049205,4]
[357147902,1743793840375,-63614.4084,0.00049215,2]
[357147903,1743793840384,-1404.3491,0.00049215,2]
[357147904,1743793840394,-153.3806032,0.00049254,10]
[357147905,1743793840405,-506.41551795,0.00049258,10]
[357147906,1743793840415,-629.83043926,0.00049265,10]
[357147907,1743793840424,-500.0,0.00049271,2]
[357147908,1743793840433,-618.11885499,0.00049271,2]
[357147909,1743793840443,-11436.3756637,0.00049285,4]
[357147910,1743793840453,-251.26476409,0.00049286,14]
[357147911,1743793840462,-28536.82744224,0.00049295,4]
[357147912,1743793840487,-268.4954,0.00048667,2]
[357147913,1743793840496,-1120.33604935,0.00049295,4]
[357147914,1743793840508,-4651.96349961,0.00049295,4]
[357147915,1743793840517,-9050.64691871,0.000493,120]
[357147916,1743793840896,-949.35308129,0.000493,120]
[357147917,1743793840906,-4255.65578284,0.00049305,4]
[357147929,1743793843029,210.72,0.00043759,2]
[357147941,1743793845696,-500.0,0.00048767,120]
[357147942,1743793845706,-500.0,0.00049041,120]
[357147943,1743793845716,-643.12513244,0.00049215,21]
[357147944,1743793845725,-2467.9058095,0.00049305,4]
[357147945,1743793845739,-31362.02,0.00049305,4]
[357147947,1743793845865,-336.92572142,0.00049305,4]
[357147951,1743793846103,-1745.32792711,0.00049305,4]
[357147952,1743793846272,-23.30177684,0.00049305,4]
[357147953,1743793857738,-300.0,0.00048767,120]
[357147954,1743793861658,-150.0,0.00048319,10]
[357147955,1743793869620,5000.0,0.00042,2]
[357147956,1743793870864,-151.16351891,0.00048319,10]
[357147957,1743793933332,288.0376774,0.0004417,2]
[357147958,1743794711069,-150.0,0.0002,2]
[357147959,1743794719772,-189.99428571,0.00045,120]
[357147960,1743794725596,-153.90742366,0.0002,2]
[357147961,1743794732802,-151.0,0.0002,2]
[357147962,1743794733513,8450.0,0.00026839,120]
[357147963,1743794733880,8450.0,0.00026829,120]
[357147964,1743794734337,8450.0,0.00026819,120]
[357147965,1743794735121,-1510.87636941,0.0002,2]